{"text_format":"1","workbook":"xlsx","n_sheets":2,"sheets":["Zkoušení","Data"],"not_rendered":{"charts":0,"images":1,"macros":1,"external_links":0,"defined_names":0,"comments":1,"pivot_tables":0},"unopened":[],"bounds":{"document_bytes":16777216,"sheet_cells":100000,"rows_first":2000,"rows_last":500,"rows_between":2000,"halvings":0,"cell_chars":16384,"cell_head_chars":4096},"cells_cut":0,"cells_raw":0,"read":"whole","date_system":"1900"}

{"sheet":"Zkoušení","index":0,"n_rows":21,"n_cols":9,"rows_kept":21,"cut":false,"hidden":false,"merged":[[11,8,12,8],[11,1,12,1],[6,5,6,6],[1,1,1,3],[1,5,1,6],[7,1,8,3],[7,8,8,8],[2,8,3,8],[20,1,20,8],[15,1,15,8],[16,1,16,8],[17,1,17,8],[18,1,18,8],[19,1,19,8]]}
[]
[null,"PŘEZKOUŠENÍ  ZE  SLOVÍČEK",null,null,null,"POČET  ODPOVĚDÍ",null,null,"POŽADAVEK"]
[null,null,null,null,null,"správně:",null,null,{"$f":"Data!K2","v":0.8}]
[null,null,null,"◄ nebo F1",null,"špatně:"]
[null,"otázka",null,"odpověď"]
[]
[null,null,null,null,null,"ZNALOST SLOVA",null,null,"CELKOVÁ ZNALOST "]
[null,null,null,null,null,"před:",null,null,{"$f":"Data!I9","v":0.5}]
[null,null,null,null,null,"po:"]
[]
[null,"POČET SLOVÍČEK",null,null,null,null,null,null,"ZBÝVÁ SLOVÍČEK"]
[null,{"$f":"Data!I5","v":20},null,null,null,null,null,null,{"$f":"Data!K5","v":20}]
[]
[]
[]
[null,"Na listu Data se nachází  aktuální slovníček s oceněním předpokládaného stavu jejich znalosti"]
[null,"S každým novým oteřením sešitu dojde ke drobnému snížení znalostí (funkce zapomínání)."]
[null,"Přezkoušení vybírá náhodně slovíčka z těch, u kterých není dosaženo žádané hranice znalosti."]
[null,"Každá odpověď (jak správná, tak nesprávná) se projeví změnou v aktuálním stavu znalosti."]
[null,"Jakmile aktuální stav znalosti překročí nastavenou hranici, přestane se slovíčko přezkušovat."]
[null,"Znovu se může objevit až po čase v důsledku zapomínacího efektu při každém otevření sešitu."]

{"sheet":"Data","index":1,"n_rows":21,"n_cols":11,"rows_kept":21,"cut":false,"hidden":false,"merged":[[7,8,7,10],[8,8,9,10]]}
["MAX",null,"dotaz","odpověď","stav",".","výsledek",null,"otevření","citlivost","hranice"]
[{"$f":"COUNTA(C:C)","v":21},null,"běžet","run",0.5,null,{"$f":"IF(F2=\"\",E2,F2*$J$3+(1-$J$3)*E2)","v":0.5},null,0.05,0.2,0.8]
[null,null,"číst","read",0.5,null,0.5,null,null,{"$f":"IF(Zkoušení!B6=\"\",I2,J2)","v":0.05}]
[null,null,"jíst","eat",0.5,null,0.5,null,"celkem","umím","zbývá"]
[null,null,"jít","walk",0.5,null,0.5,null,{"$f":"COUNTA(C:C)-1","v":20},{"$f":"COUNTIF(E:E,\">$K$2\")-1","v":0},{"$f":"I5-J5","v":20}]
[null,null,"dělat","do",0.5,null,0.5]
[null,null,"vařit","cook",0.5,null,0.5]
[null,null,"vidět","see",0.5,null,0.5,null,"ZNALOST  SLOVÍČEK  CELKEM"]
[null,null,"plakat","cry",0.5,null,0.5,null,{"$f":"AVERAGE(INDIRECT(\"G2:G\"&A2))","v":0.5}]
[null,null,"mýt","wash",0.5,null,0.5]
[null,null,"plavat","swim",0.5,null,0.5]
[null,null,"počítat","count",0.5,null,0.5]
[null,null,"psát","write",0.5,null,0.5,null,"Ručně měněné hodnoty:"]
[null,null,"skočit","jump",0.5,null,0.5,null,"otevření","velikost ztráty znalosti při novém otevření sešitu; týká se všech položek ve slovníku C:G"]
[null,null,"skončit","finish",0.5,null,0.5,null,"citlivost","vliv nového výsledku na stav znalosti; 0,2 znamená dvacetiprocentní ovlivnění dané položky"]
[null,null,"spát","sleep",0.5,null,0.5,null,"hranice","nastavená mezní hodnota znalosti; po jejím překročení se přestane slovíčko přezkušovat"]
[null,null,"zůstat","stay",0.5,null,0.5]
[null,null,"učit","teach",0.5,null,0.5,null,"Automaticky měměné hodnoty:"]
[null,null,"učit se","learn",0.5,null,0.5,null,"celkem","celkový počet položek ve slovníku"]
[null,null,"rozumět","understand",0.5,null,0.5,null,"umím","počet položek s překročenou hranicí znalosti"]
[null,null,"vědět","know",0.5,null,{"$f":"IF(F21=\"\",E21,F21*$J$3+(1-$J$3)*E21)","v":0.5},null,"zbývá","aktuální počet přezkušovaných položek"]